bitfinex-derivatives/quotes_BTCF0:USTF0_20250720
["timestamp","ask_amount","ask_price","bid_price","bid_amount"]
[1752992407520,1.5709051,117880.0,117870.0,0.12980568]
[1752992408734,1.59280774,117880.0,117870.0,0.12980568]
[1752992409826,1.5709051,117880.0,117870.0,0.12980568]
[1752992414729,1.44283942,117880.0,117870.0,0.00174]
[1752992415926,1.31477374,117880.0,117870.0,0.00174]
[1752992416127,1.44283942,117880.0,117870.0,0.00174]
[1752992416326,1.46474316,117880.0,117870.0,0.00174]
[1752992416623,1.44283942,117880.0,117870.0,0.00174]
[1752992417224,1.59281091,117880.0,117870.0,0.00174]
[1752992417523,1.76248291,117880.0,117870.0,0.00174]
[1752992418632,1.76247974,117880.0,117870.0,0.00174]
[1752992421132,2.12327974,117880.0,117870.0,0.00174]
[1752992424634,1.95360774,117880.0,117870.0,0.00174]
[1752992431438,1.23200774,117880.0,117870.0,0.00174]
[1752992431638,1.59280774,117880.0,117870.0,0.00174]
[1752992433729,1.76247974,117880.0,117870.0,0.00174]
[1752992433934,0.3629522,117860.0,117850.0,0.74668368]
[1752992434140,1.09221788,117860.0,117850.0,0.77670368]
[1752992435137,1.09321788,117860.0,117850.0,0.77870368]
[1752992435340,1.09321788,117860.0,117850.0,0.78848368]
[1752992436437,1.09321788,117860.0,117850.0,0.660418]
[1752992436740,1.09321788,117860.0,117850.0,0.78848368]
[1752992437241,1.09421788,117860.0,117850.0,0.78948368]
[1752992437642,1.09421788,117860.0,117850.0,0.42868368]
[1752992440448,1.09421788,117860.0,117850.0,0.38629228]
[1752992440843,0.9661522,117860.0,117850.0,0.38629228]
[1752992441045,1.09421788,117860.0,117850.0,0.38629228]
[1752992445141,1.09421788,117860.0,117850.0,0.2582266]
[1752992445350,1.09421788,117860.0,117850.0,0.38629228]
[1752992447450,1.09421788,117860.0,117850.0,0.42848228]
[1752992447845,1.09421788,117860.0,117850.0,0.38629228]
[1752992448044,1.09421788,117860.0,117850.0,0.42848228]
[1752992449152,1.22228356,117860.0,117850.0,0.2582266]
[1752992449552,1.09421788,117860.0,117850.0,0.2582266]
[1752992449751,1.09421788,117860.0,117850.0,0.21667568]
[1752992450052,1.09421788,117860.0,117850.0,0.003]
[1752992450053,1.24419146,117860.0,117850.0,0.003]
[1752992451057,1.24419161,117860.0,117850.0,0.003]
[1752992452148,1.24419161,117860.0,117850.0,0.1726166]
[1752992452453,1.24419161,117860.0,117850.0,0.003]
[1752992453056,1.22228356,117860.0,117850.0,0.003]
[1752992453256,1.24419134,117860.0,117850.0,0.003]
[1752992453754,1.60499135,117860.0,117850.0,0.003]
[1752992454356,1.60499135,117860.0,117850.0,0.13106568]
[1752992454755,1.60499135,117860.0,117850.0,0.003]
[1752992457751,1.60499135,117860.0,117850.0,0.1726165]
[1752992458760,1.60499135,117860.0,117850.0,0.003]
[1752992459962,1.58308356,117860.0,117850.0,0.003]
[1752992460357,1.3269522,117860.0,117850.0,0.003]
[1752992460657,1.22104356,117860.0,117850.0,0.30068218]
[1752992460959,1.58184356,117860.0,117850.0,0.30068218]
[1752992461260,1.45377788,117860.0,117850.0,0.30068218]
[1752992461653,1.09297788,117860.0,117850.0,0.30068218]
[1752992461959,1.22128356,117860.0,117850.0,0.30068218]
[1752992463059,1.58208356,117860.0,117850.0,0.30068218]
[1752992463761,1.45401788,117860.0,117850.0,0.30068218]
[1752992464462,1.45393788,117860.0,117850.0,0.30068218]
[1752992465057,1.09313788,117860.0,117850.0,0.30068218]
[1752992466664,1.45393788,117860.0,117850.0,0.30068218]
[1752992466856,1.11505254,117860.0,117850.0,0.30068218]
[1752992467065,1.09313788,117860.0,117850.0,0.30068218]
[1752992467363,1.11505333,117860.0,117850.0,0.30068218]
[1752992467564,1.47585333,117860.0,117850.0,0.30068218]
[1752992467869,1.45393788,117860.0,117850.0,0.30068218]
[1752992468057,1.47585381,117860.0,117850.0,0.30068218]
[1752992468467,1.11505381,117860.0,117850.0,0.30068218]
[1752992468668,1.09313788,117860.0,117850.0,0.30068218]
[1752992468855,1.09313788,117860.0,117850.0,0.33196218]
[1752992471767,1.11505567,117860.0,117850.0,0.33196218]
[1752992471966,1.09313788,117860.0,117850.0,0.33196218]
[1752992472466,1.09313788,117860.0,117850.0,0.2038965]
[1752992472666,1.09313788,117860.0,117850.0,0.33196218]
[1752992472966,0.9650722,117860.0,117850.0,0.33196218]
[1752992473167,1.09313788,117860.0,117850.0,0.33196218]
[1752992473368,1.1150371,117860.0,117850.0,0.33196218]
[1752992474568,1.1150371,117860.0,117850.0,0.2038965]
[1752992474768,1.1150371,117860.0,117850.0,0.33196218]
[1752992475767,1.1150371,117860.0,117850.0,0.2038965]
[1752992475964,1.1150371,117860.0,117850.0,0.33196218]
[1752992482172,0.98697142,117860.0,117850.0,0.33196218]
[1752992482471,1.1150371,117860.0,117850.0,0.33196218]
[1752992495772,1.4758371,117860.0,117850.0,0.33196218]
[1752992496273,1.4758371,117860.0,117850.0,0.2038965]
[1752992496474,1.4758371,117860.0,117850.0,0.16234568]
[1752992496675,1.4758371,117860.0,117850.0,0.33196208]
[1752992497872,1.4758371,117860.0,117850.0,0.03428]
[1752992498073,1.4758371,117860.0,117850.0,0.16234568]
[1752992499673,1.1150371,117860.0,117850.0,0.03428]
[1752992499872,1.4758371,117860.0,117850.0,0.16234568]
[1752992502681,1.4758371,117860.0,117850.0,0.03428]
[1752992502986,1.4758371,117860.0,117850.0,0.13106568]
[1752992503671,1.60390278,117860.0,117850.0,0.003]
[1752992506282,1.60390278,117860.0,117850.0,0.13106568]
[1752992506482,1.60390278,117860.0,117850.0,0.003]
[1752992506685,1.60390278,117860.0,117850.0,0.13106568]
[1752992507389,1.60390278,117860.0,117850.0,0.003]
[1752992507586,1.60390278,117860.0,117850.0,0.13106568]
[1752992508691,1.60390278,117860.0,117850.0,0.003]
[1752992509284,1.34777142,117860.0,117850.0,0.003]
[1752992509483,1.4758371,117860.0,117850.0,0.003]
[1752992511483,1.34777142,117860.0,117850.0,0.003]
[1752992511684,1.60390278,117860.0,117850.0,0.003]
[1752992513794,1.34777142,117860.0,117850.0,0.003]
[1752992513988,1.4758371,117860.0,117850.0,0.003]
[1752992518399,1.60390278,117860.0,117850.0,0.003]
[1752992521905,1.24310278,117860.0,117850.0,0.003]
[1752992522205,1.60390278,117860.0,117850.0,0.003]
[1752992527209,1.60385916,117860.0,117850.0,0.003]
[1752992537223,1.3477278,117860.0,117850.0,0.003]
[1752992537417,1.3477278,117860.0,117850.0,0.13106568]
[1752992537718,1.24305916,117860.0,117850.0,0.13106568]
[1752992537919,1.3477278,117860.0,117850.0,0.13106568]
[1752992538113,1.60385916,117860.0,117850.0,0.13106568]
[1752992538512,1.3477278,117860.0,117850.0,0.13106568]
[1752992538816,1.60385916,117860.0,117850.0,0.13106568]
[1752992540314,0.7669678,117860.0,117850.0,0.38305218]
[1752992540518,0.53423348,117860.0,117850.0,0.42344218]
[1752992540717,0.9895278,117860.0,117850.0,0.42344218]
[1752992541120,1.11787348,117860.0,117850.0,0.42344218]
[1752992543313,1.11839348,117860.0,117850.0,0.42344218]
[1752992543516,1.11839348,117860.0,117850.0,0.3128065]
[1752992543722,1.11839348,117860.0,117850.0,0.44087218]
[1752992544125,0.9903278,117860.0,117850.0,0.44087218]
[1752992544424,1.11839348,117860.0,117850.0,0.80167218]
[1752992545225,1.11839348,117860.0,117850.0,0.78424218]
[1752992548824,1.11839899,117860.0,117850.0,0.78424218]
[1752992549031,1.11839899,117860.0,117850.0,0.25382568]
[1752992550136,1.11839899,117860.0,117850.0,0.42344218]
[1752992552330,0.99033331,117860.0,117850.0,0.80140218]
[1752992552526,1.11839899,117860.0,117850.0,0.80140218]
[1752992552834,0.40617331,117860.0,117850.0,0.82497218]
[1752992553027,0.99017331,117860.0,117850.0,0.82497218]
[1752992553229,1.11823899,117860.0,117850.0,0.82497218]
[1752992553430,1.09637788,117860.0,117850.0,0.82497218]
[1752992554030,1.09637788,117860.0,117850.0,0.80140218]
[1752992555134,1.11507056,117860.0,117850.0,0.80140218]
[1752992557830,0.3843122,117860.0,117850.0,0.92946786]
[1752992558137,0.2529022,117860.0,117850.0,1.87394033]
[1752992558435,0.2335422,117860.0,117850.0,1.55394033]
[1752992558626,0.2335422,117860.0,117850.0,1.91394033]
[1752992560135,0.1716022,117860.0,117850.0,1.91394033]
[1752992562535,0.2319622,117860.0,117850.0,1.91394033]
[1752992563235,0.2319622,117860.0,117850.0,1.93394033]
[1752992564041,0.06236,117860.0,117850.0,1.29780897]
[1752992564239,0.06236,117860.0,117850.0,1.88394033]
[1752992564539,0.06236,117860.0,117850.0,1.87394033]
[1752992565540,0.231962,117860.0,117850.0,1.87394033]
[1752992567740,0.231962,117860.0,117850.0,1.29780897]
[1752992567941,0.231962,117860.0,117850.0,1.91394033]
[1752992570441,0.231962,117860.0,117850.0,2.27474033]
[1752992571036,0.231962,117860.0,117850.0,1.55314033]
[1752992571242,0.231962,117860.0,117850.0,2.27474033]
[1752992571839,0.171602,117860.0,117850.0,2.27474033]
[1752992573843,0.002,117860.0,117850.0,2.27474033]
[1752992574041,0.171602,117860.0,117850.0,2.27474033]
[1752992575250,0.171602,117860.0,117850.0,2.01860897]
[1752992575443,0.228982,117860.0,117850.0,1.91474033]
[1752992575644,0.228982,117860.0,117850.0,2.28474033]
[1752992577249,0.228982,117860.0,117850.0,1.91474033]
[1752992577449,0.228982,117860.0,117850.0,2.23474033]
[1752992577650,0.228982,117860.0,117850.0,2.27474033]
[1752992578345,0.228982,117860.0,117850.0,2.01860897]
[1752992578550,0.228982,117860.0,117850.0,1.91474033]
[1752992578747,0.228982,117860.0,117850.0,2.29474033]
[1752992580553,0.228982,117860.0,117850.0,1.91474033]
[1752992580853,0.228982,117860.0,117850.0,2.26474033]
[1752992581352,0.228982,117860.0,117850.0,1.91474033]
[1752992581556,0.228982,117860.0,117850.0,2.26474033]
[1752992584760,0.228982,117860.0,117850.0,2.01860897]
[1752992584959,0.228982,117860.0,117850.0,2.29474033]
[1752992585149,0.002,117860.0,117850.0,2.04280601]
[1752992585354,0.2693657,117870.0,117860.0,0.3085821]
[1752992585659,0.2876057,117870.0,117860.0,1.31281346]
[1752992585854,0.3301057,117870.0,117860.0,1.25281346]
[1752992586159,0.4064957,117870.0,117860.0,1.25281346]
[1752992586561,0.4084957,117870.0,117860.0,1.25481346]
[1752992586761,0.4094957,117870.0,117860.0,0.94481346]
[1752992586960,0.4094957,117870.0,117860.0,1.32481346]
[1752992590762,0.4094957,117870.0,117860.0,1.0686821]
[1752992590970,0.4094957,117870.0,117860.0,0.94481346]
[1752992602482,0.4094957,117870.0,117860.0,1.31481346]
[1752992604778,0.4094957,117870.0,117860.0,1.28481346]
[1752992605788,0.4094957,117870.0,117860.0,0.94481346]
[1752992605990,0.4094957,117870.0,117860.0,1.26481346]
[1752992607489,0.4094957,117870.0,117860.0,1.62561346]
[1752992609090,0.4094957,117870.0,117860.0,0.90401346]
[1752992609290,0.4094957,117870.0,117860.0,1.62561346]
[1752992619796,0.4094957,117870.0,117860.0,0.90401346]
[1752992620097,0.4094957,117870.0,117860.0,1.62561346]
[1752992624198,0.4094957,117870.0,117860.0,1.64561346]
[1752992626001,0.4094957,117870.0,117860.0,1.0494821]
[1752992626200,0.4094957,117870.0,117860.0,1.62561346]
[1752992629004,0.4094957,117870.0,117860.0,1.0494821]
[1752992629201,0.4094957,117870.0,117860.0,1.30561346]
[1752992629501,0.4094957,117870.0,117860.0,1.62561346]
[1752992630304,0.4094957,117870.0,117860.0,1.0494821]
[1752992630503,0.4094957,117870.0,117860.0,1.30561346]
[1752992635199,0.4094957,117870.0,117860.0,1.28419346]
[1752992635408,0.53756138,117870.0,117860.0,1.51987568]
[1752992636000,0.4094957,117870.0,117860.0,1.64516768]
[1752992636202,0.4094957,117870.0,117860.0,1.558002]
[1752992636506,0.4094957,117870.0,117860.0,1.81413336]
[1752992637301,0.4094957,117870.0,117860.0,1.558002]
[1752992637601,0.4094957,117870.0,117860.0,1.81413336]
[1752992642107,0.4094957,117870.0,117860.0,2.31558904]
[1752992642312,0.4094957,117870.0,117860.0,2.18752336]
[1752992642499,0.4094957,117870.0,117860.0,1.84752336]
[1752992642706,0.06038,117870.0,117860.0,1.97558904]
[1752992642905,0.06038,117870.0,117860.0,2.32558904]
[1752992643810,0.2299676,117870.0,117860.0,2.32558904]
[1752992644208,0.06038,117870.0,117860.0,2.32558904]
[1752992645004,0.2299676,117870.0,117860.0,1.591392]
[1752992645208,0.2299676,117870.0,117860.0,2.34558904]
[1752992646812,0.2299676,117870.0,117860.0,1.591392]
[1752992647111,0.2299676,117870.0,117860.0,1.84752336]
[1752992647308,0.2461876,117870.0,117860.0,1.84752336]
[1752992648210,0.2461876,117870.0,117860.0,2.15752336]
[1752992649411,0.2461876,117870.0,117860.0,2.21752336]
[1752992649711,0.2461876,117870.0,117860.0,2.18752336]
[1752992650608,0.2461876,117870.0,117860.0,2.31558904]
[1752992650808,0.0766,117870.0,117860.0,1.591392]
[1752992651008,0.2461876,117870.0,117860.0,2.30558904]
[1752992653011,0.2299676,117870.0,117860.0,2.30558904]
[1752992653211,0.2299676,117870.0,117860.0,1.97558904]
[1752992653413,0.2299676,117870.0,117860.0,2.33558904]
[1752992653812,0.2299676,117870.0,117860.0,1.61398904]
[1752992654011,0.2299676,117870.0,117860.0,2.33558904]
[1752992654211,0.2299676,117870.0,117860.0,1.97558904]
[1752992654413,0.2299676,117870.0,117860.0,2.28558904]
[1752992655414,0.2299676,117870.0,117860.0,2.15752336]
[1752992657717,0.2299676,117870.0,117860.0,2.28558904]
[1752992658716,0.2299676,117870.0,117860.0,2.29558904]
[1752992660418,0.2299676,117870.0,117860.0,2.29632904]
[1752992660619,0.06038,117870.0,117860.0,2.29632904]
[1752992663323,0.2299676,117870.0,117860.0,2.29632904]
[1752992663820,0.06038,117870.0,117860.0,2.29632904]
[1752992664815,0.003,117870.0,117860.0,2.29632904]
[1752992665516,0.0591,117870.0,117860.0,2.29632904]
[1752992668622,0.07232,117880.0,117870.0,0.2284977]
[1752992668823,0.0561,117880.0,117870.0,1.38427597]
[1752992669018,0.0561,117880.0,117870.0,0.93621029]
[1752992669219,0.0561,117880.0,117870.0,1.27621029]
[1752992669421,0.2256733,117880.0,117870.0,0.93621029]
[1752992669618,0.2256733,117880.0,117870.0,1.26621029]
[1752992670224,0.2266733,117880.0,117870.0,0.93721029]
[1752992670525,0.0591,117880.0,117870.0,1.30821029]
[1752992670726,0.0591,117880.0,117870.0,0.93821029]
[1752992670925,0.0591,117880.0,117870.0,1.31821029]
[1752992672228,0.0591,117880.0,117870.0,0.93821029]
[1752992672425,0.0591,117880.0,117870.0,1.27821029]
[1752992675329,0.07219,117890.0,117880.0,0.2202932]
[1752992675531,0.07219,117890.0,117880.0,1.64813024]
[1752992675827,0.07219,117890.0,117880.0,2.00813024]
[1752992676328,0.07219,117890.0,117880.0,1.2639332]
[1752992676523,0.07219,117890.0,117880.0,1.99813024]
[1752992676733,0.07519,117890.0,117880.0,1.99913024]
[1752992677129,0.07519,117890.0,117880.0,2.06735025]
[1752992677630,0.07519,117890.0,117880.0,1.71735025]
[1752992677932,0.11813,117890.0,117880.0,1.33315321]
[1752992678231,0.3584089,117890.0,117880.0,1.58928457]
[1752992682438,0.3604089,117890.0,117880.0,1.58928457]
[1752992691140,0.3604089,117890.0,117880.0,1.33315321]
[1752992691341,0.3604089,117890.0,117880.0,1.58928457]
[1752992692938,0.3604089,117890.0,117880.0,1.22848457]
[1752992693146,0.3604089,117890.0,117880.0,1.58928457]
[1752992694847,0.3604089,117890.0,117880.0,1.22848457]
[1752992695048,0.3604089,117890.0,117880.0,1.58928457]
[1752992700355,0.3604089,117890.0,117880.0,0.95742457]
[1752992700551,0.3604089,117890.0,117880.0,1.55450457]
[1752992701345,0.3604089,117890.0,117880.0,1.56938457]
[1752992706263,0.3604089,117890.0,117880.0,1.31325321]
[1752992706456,0.3604089,117890.0,117880.0,1.56938457]
[1752992707365,0.3604089,117890.0,117880.0,1.20858457]
[1752992707562,0.3604089,117890.0,117880.0,1.56938457]
[1752992708661,0.3604089,117890.0,117880.0,2.06063025]
[1752992708867,0.19085,117890.0,117880.0,1.71063025]
[1752992709054,0.16437,117890.0,117880.0,1.32643321]
[1752992709468,0.16437,117890.0,117880.0,2.06063025]
[1752992709967,0.0611,117890.0,117880.0,2.06063025]
[1752992710363,0.0591,117890.0,117880.0,1.32643321]
[1752992710568,0.0571,117890.0,117880.0,2.02963025]
[1752992710761,0.0571,117890.0,117880.0,2.03963025]
[1752992710960,0.0581,117890.0,117880.0,2.04063025]
[1752992711262,0.2276588,117890.0,117880.0,1.71063025]
[1752992711466,0.2276588,117890.0,117880.0,2.04063025]
[1752992711870,0.0581,117890.0,117880.0,1.71063025]
[1752992712069,0.0581,117890.0,117880.0,2.05063025]
[1752992712665,0.2276589,117890.0,117880.0,2.05063025]
[1752992713373,0.2276589,117890.0,117880.0,1.32643321]
[1752992713670,0.2276589,117890.0,117880.0,2.05063025]
[1752992713873,0.2276589,117890.0,117880.0,1.92256457]
[1752992714974,0.2276589,117890.0,117880.0,1.32643321]
[1752992715171,0.2276589,117890.0,117880.0,1.94256457]
[1752992715172,0.2448189,117890.0,117880.0,1.94256457]
[1752992715368,0.2448189,117890.0,117880.0,1.94330457]
[1752992716872,0.2448189,117890.0,117880.0,0.96637321]
[1752992717072,0.2448189,117890.0,117880.0,1.58330457]
[1752992717274,0.2871189,117890.0,117880.0,1.58330457]
[1752992717667,0.30611711,117890.0,117880.0,1.58330457]
[1752992718277,0.37674711,117890.0,117880.0,0.97304467]
[1752992718575,0.3577489,117890.0,117880.0,1.33573331]
[1752992718777,0.3577489,117890.0,117880.0,1.71993035]
[1752992718975,0.3577489,117890.0,117880.0,2.09993035]
[1752992719474,0.3577489,117890.0,117880.0,1.59186467]
[1752992720977,0.3577489,117890.0,117880.0,0.98622467]
[1752992721279,0.3577489,117890.0,117880.0,1.60090467]
[1752992721478,0.3577489,117890.0,117880.0,1.34477331]
[1752992721674,0.3577489,117890.0,117880.0,1.60090467]
[1752992722275,0.37680454,117890.0,117880.0,1.34477331]
[1752992722476,0.37680454,117890.0,117880.0,1.60090467]
[1752992724581,0.37680454,117890.0,117880.0,1.34477331]
[1752992724768,0.37680454,117890.0,117880.0,1.60090467]
[1752992728583,0.37680454,117890.0,117880.0,2.10897035]
[1752992728879,0.3577489,117890.0,117880.0,1.72477331]
[1752992729084,0.2797589,117890.0,117880.0,1.60090467]
[1752992729285,0.2797589,117890.0,117880.0,1.94090467]
[1752992730083,0.2797589,117890.0,117880.0,1.34477331]
[1752992730278,0.2276589,117890.0,117880.0,1.97090467]
[1752992731289,0.2276589,117890.0,117880.0,1.34477331]
[1752992731485,0.2276589,117890.0,117880.0,1.93090467]
[1752992732388,0.2848189,117890.0,117880.0,1.93090467]
[1752992733285,0.2848189,117890.0,117880.0,1.60090467]
[1752992733686,0.2848189,117890.0,117880.0,1.34477331]
[1752992733877,0.2848189,117890.0,117880.0,1.60090467]
[1752992734079,0.3198389,117890.0,117880.0,1.60090467]
[1752992734381,0.2785689,117890.0,117880.0,1.60090467]
[1752992734586,0.2276589,117890.0,117880.0,1.60090467]
[1752992735287,0.2435489,117890.0,117880.0,1.60090467]
[1752992735588,0.2848189,117890.0,117880.0,1.60090467]
[1752992738691,0.3198389,117890.0,117880.0,1.60090467]
[1752992739393,0.3465989,117890.0,117880.0,1.60090467]
[1752992740793,0.3545489,117890.0,117880.0,1.60090467]
[1752992741692,0.3545489,117890.0,117880.0,1.24010467]
[1752992741997,0.3545489,117890.0,117880.0,1.60090467]
[1752992742594,0.3545489,117890.0,117880.0,1.34477331]
[1752992742798,0.3545489,117890.0,117880.0,1.60090467]
[1752992756504,0.3545489,117890.0,117880.0,1.34477331]
[1752992756701,0.3545489,117890.0,117880.0,1.60090467]
[1752992759006,0.3545489,117890.0,117880.0,1.34477331]
[1752992759198,0.3545489,117890.0,117880.0,1.60090467]
[1752992761102,0.3545489,117890.0,117880.0,1.58772467]
[1752992761502,0.3545489,117890.0,117880.0,1.59711467]
[1752992763306,0.3545489,117890.0,117880.0,1.34098331]
[1752992763507,0.3545489,117890.0,117880.0,1.59711467]
[1752992763698,0.3545489,117890.0,117880.0,1.58772467]
[1752992764309,0.3545489,117890.0,117880.0,1.59660467]
[1752992765405,0.3545489,117890.0,117880.0,1.23580467]
[1752992765705,0.3545489,117890.0,117880.0,1.59660467]
[1752992769806,0.3545489,117890.0,117880.0,1.34047331]
[1752992770105,0.3545489,117890.0,117880.0,1.59660467]
[1752992776711,0.3545489,117890.0,117880.0,1.23580467]
[1752992776911,0.3545489,117890.0,117880.0,1.59660467]
[1752992781311,0.2785689,117890.0,117880.0,1.59660467]
[1752992783719,0.2785689,117890.0,117880.0,1.34047331]
[1752992783915,0.2785689,117890.0,117880.0,1.59660467]
[1752992787921,0.3161989,117890.0,117880.0,1.59660467]
[1752992789526,0.2785689,117890.0,117880.0,1.59660467]
[1752992790029,0.2785689,117890.0,117880.0,1.61352618]
[1752992790325,0.2785689,117890.0,117880.0,1.98352618]
[1752992790529,0.2435489,117890.0,117880.0,1.61352618]
[1752992796733,0.07399,117890.0,117880.0,1.61352618]
[1752992798438,0.0581,117890.0,117880.0,1.61352618]
[1752992798831,0.002,117890.0,117880.0,1.74159186]
[1752992800236,0.002,117890.0,117880.0,2.07159186]
[1752992801639,0.04942,117900.0,117890.0,0.215609]
[1752992801839,0.04942,117900.0,117890.0,1.21005036]
[1752992802041,0.04942,117900.0,117890.0,0.89005036]
[1752992802235,0.04942,117900.0,117890.0,1.25005036]
[1752992803544,0.05042,117900.0,117890.0,1.25005036]
[1752992803843,0.05142,117900.0,117890.0,1.25105036]
[1752992804439,0.002,117900.0,117890.0,1.25105036]
[1752992805145,0.002,117900.0,117890.0,0.89105036]
[1752992805546,0.002,117900.0,117890.0,1.26105036]
[1752992805741,0.002,117900.0,117890.0,1.26179036]
[1752992806047,0.05142,117900.0,117890.0,1.26179036]
[1752992811854,0.05142,117900.0,117890.0,0.90099036]
[1752992812055,0.05142,117900.0,117890.0,1.26179036]
[1752992814357,0.002,117900.0,117890.0,1.38985604]
[1752992814857,0.002,117900.0,117890.0,1.26179036]
[1752992815459,0.001,117900.0,117890.0,1.26179036]
[1752992815658,0.001,117900.0,117890.0,1.26279036]
[1752992815860,0.04942,117910.0,117900.0,0.2129846]
[1752992816057,0.06543,117910.0,117900.0,1.88382898]
[1752992816258,0.08463832,117910.0,117900.0,1.24769762]
[1752992816462,0.08463832,117910.0,117900.0,1.50382898]
[1752992817455,0.08563832,117910.0,117900.0,1.50382898]
[1752992817657,0.06962832,117910.0,117900.0,1.50382898]
[1752992818261,0.07162832,117910.0,117900.0,1.50482898]
[1752992818464,0.08763832,117910.0,117900.0,1.50482898]
[1752992821158,0.05242,117910.0,117900.0,1.99289466]
[1752992821465,0.05216,117910.0,117900.0,1.99289466]
[1752992824063,0.05216,117910.0,117900.0,1.24869762]
[1752992824261,0.05216,117910.0,117900.0,1.83482898]
[1752992824462,0.05216,117910.0,117900.0,1.96289466]
[1752992824859,0.06817,117910.0,117900.0,1.96289466]
[1752992825067,0.06817,117910.0,117900.0,2.32369466]
[1752992827857,0.06817,117910.0,117900.0,2.19562898]
[1752992828666,0.06817,117910.0,117900.0,1.93949762]
[1752992828971,0.06817,117910.0,117900.0,2.21562898]
[1752992830375,0.06817,117910.0,117900.0,1.60949762]
[1752992830664,0.06817,117910.0,117900.0,2.19562898]
[1752992830870,0.06817,117910.0,117900.0,2.24562898]
[1752992831877,0.06817,117910.0,117900.0,1.52402898]
[1752992832179,0.06817,117910.0,117900.0,2.24562898]
[1752992834767,0.06817,117910.0,117900.0,2.37369466]
[1752992834973,0.06817,117910.0,117900.0,2.36369466]
[1752992851086,0.05216,117910.0,117900.0,2.36369466]
[1752992853681,0.003,117910.0,117900.0,2.36369466]
[1752992854586,0.05425,117910.0,117900.0,2.36369466]
[1752992862489,0.05425,117910.0,117900.0,2.36443466]
[1752992866488,0.07289294,117910.0,117900.0,2.36443466]
[1752992867495,0.07289294,117910.0,117900.0,1.98023762]
[1752992867695,0.07289294,117910.0,117900.0,2.23636898]
[1752992867994,0.08759294,117910.0,117900.0,2.23636898]
[1752992868187,0.06895,117910.0,117900.0,2.36443466]
[1752992868385,0.05425,117910.0,117900.0,2.36443466]
[1752992870290,0.05425,117910.0,117900.0,2.440752]
[1752992875199,0.05108,117920.0,117910.0,0.3274203]
[1752992875402,0.05108,117920.0,117910.0,1.31435166]
[1752992875702,0.2883179,117930.0,117920.0,0.2322759]
[1752992875899,0.2883179,117930.0,117920.0,1.54421726]
[1752992876899,0.11881,117930.0,117920.0,1.54421726]
[1752992877203,0.16921,117930.0,117920.0,1.67328294]
[1752992877502,0.16921,117930.0,117920.0,2.01328294]
[1752992877697,0.16921,117930.0,117920.0,1.88521726]
[1752992877907,0.17321,117930.0,117920.0,1.88621726]
[1752992878203,0.17321,117930.0,117920.0,1.54621726]
[1752992878405,0.16921,117930.0,117920.0,1.54521726]
[1752992878701,0.17121,117930.0,117920.0,1.54521726]
[1752992879499,0.002,117930.0,117920.0,2.00203811]
[1752992880500,0.002,117930.0,117920.0,2.07835545]
[1752992881405,0.002,117930.0,117920.0,2.00203811]
[1752992882403,0.002,117930.0,117920.0,2.07835545]
[1752992883407,0.002,117930.0,117920.0,2.00203811]
[1752992883897,0.002,117930.0,117920.0,2.07835545]
[1752992888309,0.002,117930.0,117920.0,1.69415841]
[1752992888510,0.002,117930.0,117920.0,2.07835545]
[1752992889811,0.002,117930.0,117920.0,1.69415841]
[1752992890013,0.002,117930.0,117920.0,2.07835545]
[1752992893315,0.002,117930.0,117920.0,2.00203811]
[1752992897519,0.002,117930.0,117920.0,2.07835545]
[1752992898522,0.002,117930.0,117920.0,2.07909545]
[1752992898918,0.002,117930.0,117920.0,2.43989545]
[1752992900322,0.002,117930.0,117920.0,2.05569841]
[1752992900526,0.002,117930.0,117920.0,2.43989545]
[1752992902518,0.002,117930.0,117920.0,1.97938107]
[1752992902725,0.06938948,117930.0,117920.0,2.23551243]
[1752992903121,0.06938948,117930.0,117920.0,2.36357811]
[1752992905130,0.06938948,117930.0,117920.0,1.76369811]
[1752992905328,0.08464948,117930.0,117920.0,2.36521811]
[1752992906333,0.08464948,117930.0,117920.0,1.98102107]
[1752992906536,0.08464948,117930.0,117920.0,2.36521811]
[1752992908335,0.08464948,117930.0,117920.0,2.44153545]
[1752992908736,0.08464948,117930.0,117920.0,2.36521811]
[1752992909038,0.08464948,117930.0,117920.0,2.47156666]
[1752992914133,0.06566,117930.0,117920.0,2.47156666]
[1752992915040,0.06566,117930.0,117920.0,2.36481811]
[1752992915832,0.08454995,117930.0,117920.0,1.37950107]
[1752992916037,0.08454995,117930.0,117920.0,1.98014107]
[1752992916336,0.08454995,117930.0,117920.0,2.36433811]
[1752992916540,0.08454995,117930.0,117920.0,2.44060932]
[1752992917441,0.08454995,117930.0,117920.0,2.36433811]
[1752992919444,0.08454995,117930.0,117920.0,2.47108666]
[1752992920542,0.06566,117930.0,117920.0,2.47108666]
[1752992923542,0.06566,117930.0,117920.0,2.36433811]
[1752992923842,0.06566,117930.0,117920.0,1.98014107]
[1752992924044,0.06566,117930.0,117920.0,2.36433811]
[1752992924250,0.06566,117930.0,117920.0,2.47108666]
[1752992925244,0.084363,117930.0,117920.0,2.34302098]
[1752992925436,0.06566,117930.0,117920.0,2.34302098]
[1752992925839,0.06566,117930.0,117920.0,2.47108666]
[1752992926243,0.06566,117930.0,117920.0,2.36433811]
[1752992927848,0.06566,117930.0,117920.0,2.23627243]
[1752992928234,0.06566,117930.0,117920.0,2.36433811]
[1752992931242,0.06566,117930.0,117920.0,2.47108666]
[1752992935147,0.46223728,117930.0,117920.0,1.57433632]
[1752992935343,0.46223728,117930.0,117920.0,2.04763675]
[1752992935546,0.46223728,117930.0,117920.0,2.12395632]
[1752992935749,0.3341716,117930.0,117920.0,1.19676042]
[1752992935952,0.46223728,117930.0,117920.0,1.18960042]
[1752992936147,0.46223728,117930.0,117920.0,1.15823042]
[1752992936347,0.4814158,117930.0,117920.0,1.32774652]
[1752992936548,0.4814158,117930.0,117920.0,1.21659456]
[1752992936748,0.4814158,117930.0,117920.0,1.19236456]
[1752992936949,0.4814158,117930.0,117920.0,1.32043024]
[1752992937651,0.4814158,117930.0,117920.0,1.24411067]
[1752992938550,0.4814158,117930.0,117920.0,1.09913127]
[1752992938850,0.4814158,117930.0,117920.0,0.90719695]
[1752992940352,0.35335012,117930.0,117920.0,0.90719695]
[1752992940652,0.4814158,117930.0,117920.0,0.90719695]
[1752992940852,0.35335012,117930.0,117920.0,1.14262419]
[1752992941452,0.4814158,117930.0,117920.0,0.89380283]
[1752992941854,0.4814158,117930.0,117920.0,1.14993419]
[1752992942053,0.35335012,117930.0,117920.0,1.14993419]
[1752992942453,0.4814158,117930.0,117920.0,1.14993419]
[1752992942753,0.35335012,117930.0,117920.0,1.14993419]
[1752992942959,0.4814158,117930.0,117920.0,0.89380283]
[1752992943254,0.4814158,117930.0,117920.0,1.14993419]
[1752992943853,0.35335012,117930.0,117920.0,1.14993419]
[1752992945155,0.4814158,117930.0,117920.0,1.14993419]